bitfinex-derivatives/quotes_ETHF0:USTF0_20250816
["timestamp","ask_amount","ask_price","bid_price","bid_amount"]
[1755384776219,1.4549,4435.0,4434.9,23.6768]
[1755384776413,1.4549,4435.0,4434.5,0.6411]
[1755384776611,0.5843,4434.7,4434.6,0.5657]
[1755384776813,1.4549,4434.7,4434.5,20.7172]
[1755384777017,1.4549,4434.7,4434.5,20.472]
[1755384777018,0.8706,4434.6,4434.5,20.472]
[1755384777318,1.4549,4434.6,4434.5,21.5317]
[1755384777924,1.4549,4434.6,4434.5,21.2865]
[1755384778420,1.4549,4434.6,4434.5,21.792]
[1755384779321,1.4549,4434.6,4434.5,21.5317]
[1755384779624,1.4549,4434.6,4434.5,21.9608]
[1755384779815,3.2078,4435.1,4434.5,21.9608]
[1755384780125,1.206,4435.0,4434.9,1.4888]
[1755384780323,1.4549,4435.0,4434.9,1.4888]
[1755384780622,1.4549,4435.0,4434.8,20.471]
[1755384780816,1.4549,4434.9,4434.8,20.471]
[1755384781316,1.4549,4434.9,4434.8,21.9598]
[1755384782324,1.4549,4434.9,4434.8,21.6995]
[1755384782525,1.4549,4434.9,4434.8,21.5307]
[1755384783223,1.4549,4434.9,4434.8,1.0597]
[1755384785323,1.4549,4434.9,4434.8,1.4888]
[1755384787022,0.5843,4434.4,4434.3,1.4888]
[1755384787222,1.4549,4434.4,4434.3,21.9608]
[1755384788020,1.4549,4434.4,4434.2,3.2078]
[1755384788326,1.4549,4433.9,4433.8,0.1698]
[1755384788826,1.4549,4433.9,4433.8,0.5657]
[1755384789220,1.4549,4433.9,4433.8,1.0597]
[1755384789621,3.2078,4434.6,4433.8,1.0597]
[1755384789820,1.4549,4433.9,4433.8,1.4888]
[1755384792827,1.4549,4433.9,4433.8,1.2285]
[1755384793423,1.4549,4433.9,4433.8,1.4888]
[1755384794717,0.5637,4433.9,4433.8,1.4888]
[1755384794922,1.1938,4433.9,4433.8,1.4888]
[1755384795227,1.4549,4433.9,4433.8,1.4888]
[1755384796120,3.2078,4434.6,4433.9,0.9239]
[1755384796431,4.6627,4434.6,4434.5,1.4888]
[1755384798125,0.8248,4435.2,4435.1,0.5874]
[1755384798429,1.4549,4435.2,4435.1,1.4888]
[1755384802329,1.4549,4435.2,4434.8,0.3747]
[1755384802527,0.6066,4435.0,4434.9,1.0414]
[1755384802725,1.4895,4435.0,4434.9,1.0414]
[1755384802926,0.6066,4435.0,4434.6,0.6228]
[1755384803128,1.2248,4434.6,4434.1,20.8917]
[1755384803333,1.4895,4434.5,4434.4,0.4186]
[1755384803528,1.4895,4434.5,4434.4,1.0414]
[1755384805329,1.4895,4434.5,4434.4,1.4744]
[1755384809133,0.8595,4434.5,4433.5,3.2078]
[1755384809436,0.4306,4433.8,4433.7,1.0588]
[1755384809637,1.2278,4433.8,4433.7,1.2263]
[1755384809936,0.8829,4434.1,4433.7,1.4744]
[1755384810134,1.4895,4434.0,4433.9,0.5868]
[1755384810340,1.4895,4434.0,4433.9,1.4744]
[1755384811840,3.2303,4434.8,4433.9,1.4744]
[1755384812046,1.0707,4434.1,4434.0,1.4744]
[1755384812345,1.4895,4434.1,4434.0,1.4744]
[1755384813542,1.4895,4434.1,4433.6,20.531]
[1755384813543,0.3419,4434.0,4433.9,20.8667]
[1755384813842,0.8595,4434.0,4433.9,21.1178]
[1755384814249,0.6066,4434.1,4434.0,1.4744]
[1755384814447,1.4895,4434.1,4434.0,1.4744]
[1755384816153,0.6066,4433.6,4433.5,3.7946]
[1755384816447,1.4895,4433.6,4433.5,4.6822]
[1755384816639,1.0707,4433.6,4433.5,4.4174]
[1755384816842,1.4895,4433.6,4433.5,4.6822]
[1755384818240,1.4895,4433.6,4433.5,4.4174]
[1755384818439,1.4895,4433.6,4433.5,0.2511]
[1755384818645,0.6066,4433.3,4433.2,20.9486]
[1755384818845,1.1212,4433.3,4433.2,21.5714]
[1755384819043,1.4895,4433.3,4433.2,21.5714]
[1755384819643,3.2078,4434.1,4432.8,1.4744]
[1755384819644,1.2248,4432.9,4432.8,1.4744]
[1755384819843,0.8829,4434.0,4432.9,0.8876]
[1755384820144,2.05316354,4433.9,4433.8,1.0414]
[1755384820647,2.05316354,4433.9,4433.8,0.7933]
[1755384820846,2.05316354,4433.9,4433.5,0.8876]
[1755384821046,0.6066,4433.6,4433.5,1.0414]
[1755384821240,1.4895,4433.6,4433.5,1.0414]
[1755384822040,1.2278,4433.6,4432.7,3.2078]
[1755384822250,0.8595,4433.4,4433.3,0.4186]
[1755384822554,0.8595,4433.4,4433.3,1.4744]
[1755384822750,1.4895,4433.4,4433.3,1.4744]
[1755384825446,1.4895,4432.9,4432.8,1.2096]
[1755384825755,34.735,4435.2,4432.2,1.4744]
[1755384825756,1.4895,4432.3,4432.2,1.4744]
[1755384827850,1.4895,4432.3,4432.2,1.0414]
[1755384828355,1.4895,4432.3,4432.2,0.4186]
[1755384828555,0.6066,4432.3,4431.9,20.554]
[1755384828754,1.0926,4432.1,4432.0,1.0414]
[1755384828958,1.4541,4432.1,4432.0,1.0414]
[1755384829453,1.4541,4432.1,4432.0,1.4535]
[1755384830453,0.6004,4431.5,4431.4,1.4434]
[1755384830657,1.4479,4431.5,4431.4,21.9974]
[1755384831547,0.845,4431.5,4431.4,0.5793]
[1755384831753,0.845,4431.4,4431.3,1.4434]
[1755384831948,1.0414,4431.9,4431.8,1.1098]
[1755384832146,1.4479,4431.9,4431.8,1.4434]
[1755384832551,1.4479,4431.9,4431.8,1.194]
[1755384832957,0.6004,4431.3,4431.2,1.4434]
[1755384833157,1.4479,4431.3,4431.2,1.4434]
[1755384834261,0.5841,4431.3,4431.2,1.4434]
[1755384834446,3.2078,4432.0,4431.2,1.4434]
[1755384834447,3.2078,4432.0,4431.9,0.5793]
[1755384834757,3.4524,4432.0,4431.9,1.4434]
[1755384834962,3.2078,4432.0,4431.9,1.4434]
[1755384835363,4.6557,4432.0,4431.9,1.4434]
[1755384836357,1.4479,4432.0,4431.9,1.4434]
[1755384837153,0.2446,4432.4,4431.9,1.194]
[1755384837360,0.2446,4432.4,4431.2,3.2078]
[1755384837361,0.9424,4432.4,4432.3,0.3336]
[1755384837560,1.2033,4432.4,4432.3,0.8287]
[1755384837757,1.2033,4432.4,4431.6,20.572]
[1755384837758,0.6029,4432.3,4432.0,0.2494]
[1755384837963,1.4479,4431.7,4431.6,22.0154]
[1755384838164,1.4479,4431.7,4431.6,1.4434]
[1755384839957,1.0864,4431.7,4431.6,1.4434]
[1755384840157,0.486,4432.0,4431.9,0.5793]
[1755384840358,0.8255,4432.0,4431.9,1.4434]
[1755384841864,1.4479,4432.0,4431.9,1.4434]
[1755384844160,1.4479,4432.0,4431.9,1.194]
[1755384844360,1.4479,4432.0,4431.9,0.4166]
[1755384847164,1.4479,4432.0,4431.5,0.2494]
[1755384847165,0.8475,4431.9,4431.3,0.6147]
[1755384847364,1.4479,4431.4,4431.3,1.4434]
[1755384847759,1.4479,4431.4,4431.3,0.4166]
[1755384847959,1.4479,4431.4,4431.3,1.0313]
[1755384848159,0.6004,4431.4,4431.3,0.4166]
[1755384848360,1.4479,4431.4,4431.3,1.0313]
[1755384848757,1.4479,4431.4,4431.3,1.2807]
[1755384848962,1.4479,4431.4,4431.3,1.4434]
[1755384849659,0.9424,4431.3,4431.2,0.8641]
[1755384849868,0.9424,4431.3,4431.2,1.4434]
[1755384850167,1.2033,4431.3,4431.2,1.4434]
[1755384850466,1.4479,4431.3,4431.2,1.4434]
[1755384851963,0.5841,4431.3,4431.2,1.4434]
[1755384852760,3.4524,4431.9,4431.3,0.4903]
[1755384852961,3.4524,4431.9,4431.1,0.10155377]
[1755384852962,4.6557,4431.9,4431.8,1.194]
[1755384853265,4.6557,4431.9,4431.8,1.0313]
[1755384853463,3.8082,4431.9,4431.5,0.3738]
[1755384853767,1.4479,4431.6,4431.5,0.3738]
[1755384854267,0.6004,4431.6,4431.4,0.3738]
[1755384854469,3.2078,4431.9,4431.4,0.3738]
[1755384854470,1.4479,4431.5,4431.4,1.0313]
[1755384855365,1.4479,4431.5,4431.4,1.2807]
[1755384856471,1.4479,4431.5,4431.4,1.4434]
[1755384858371,0.845,4431.5,4431.4,1.4434]
[1755384858672,0.5841,4431.5,4431.4,1.4434]
[1755384860975,4.6775,4431.9,4431.8,1.4598]
[1755384863076,1.4697,4431.9,4431.8,1.4598]
[1755384864170,0.589,4432.3,4432.2,0.5723]
[1755384864472,1.4697,4432.3,4432.2,1.4598]
[1755384882188,0.6218,4432.2,4431.6,20.7995]
[1755384882491,0.5978,4431.7,4431.6,21.1163]
[1755384882981,0.2589,4431.7,4431.6,22.0038]
[1755384883178,0.8807,4432.0,4431.7,0.8875]
[1755384883379,0.2589,4432.0,4431.9,1.4598]
[1755384883889,0.3661,4432.2,4431.9,0.5723]
[1755384884187,3.2078,4432.4,4432.3,0.5723]
[1755384884384,3.2078,4432.4,4432.3,1.4598]
[1755384884690,3.8056,4432.4,4432.3,1.4598]
[1755384885585,4.0613,4432.4,4432.3,1.4598]
[1755384885882,1.2196,4432.4,4432.3,1.4598]
[1755384886086,1.4697,4432.4,4432.3,1.4598]
[1755384888991,0.8479,4432.4,4432.3,1.4598]
[1755384889197,0.975,4432.5,4432.4,0.657]
[1755384889391,1.2157,4432.5,4432.4,1.4843]
[1755384889591,1.4672,4432.5,4432.4,1.4843]
[1755384892296,2.03212664,4432.5,4432.4,1.4843]
[1755384898496,2.03212664,4432.5,4432.4,0.4009]
[1755384899097,2.03212664,4432.5,4432.4,1.053]
[1755384905908,2.03212664,4432.5,4432.4,1.2193]
[1755384907009,1.65182664,4432.5,4432.4,1.4843]
[1755384907305,2.03212664,4432.5,4432.4,1.4843]
[1755384910413,2.03237182,4432.5,4432.4,1.4843]
[1755384917917,2.0324586,4432.5,4432.4,1.4843]
[1755384936232,3.4517,4433.0,4432.4,1.4843]
[1755384936424,0.2412,4432.9,4432.8,0.5787]
[1755384936623,0.2412,4432.9,4432.8,1.4518]
[1755384939026,1.4456,4432.9,4432.8,3.2078]
[1755384939627,1.4456,4432.9,4432.8,3.6157]
[1755384939929,1.4456,4432.9,4432.8,4.2461]
[1755384941229,1.4456,4432.9,4432.8,4.4888]
[1755384942830,1.4456,4432.9,4432.8,3.6157]
[1755384943035,1.4456,4432.9,4432.8,3.2078]
[1755384943835,1.2017,4432.9,4432.8,3.6157]
[1755384944038,1.4456,4432.9,4432.8,4.6596]
[1755384948133,1.4456,4432.9,4432.8,4.4169]
[1755384948535,1.4456,4432.9,4432.8,3.6157]
[1755384948745,1.4456,4432.9,4432.8,3.3683]
[1755384949742,1.4456,4432.9,4432.8,4.2164]
[1755384950635,1.4456,4432.9,4432.8,4.4615]
[1755384951439,1.4456,4432.9,4432.8,4.6284]
[1755384957240,0.1725,4432.9,4432.8,4.6284]
[1755384957446,1.4714,4433.5,4433.4,1.4218]
[1755384958345,1.4714,4433.5,4433.4,1.0098]
[1755384958644,1.4714,4433.5,4433.4,0.4048]
[1755384959545,1.4714,4433.5,4433.4,1.0098]
[1755384963349,1.4714,4433.5,4433.4,1.2549]
[1755384966159,1.4714,4433.5,4433.4,1.4218]
[1755384973759,1.66975506,4433.5,4433.4,1.4218]
[1755384989375,1.6699942,4433.5,4433.4,1.4218]
[1755384993166,1.0319942,4433.5,4433.4,1.4839]
[1755384993371,1.2810942,4433.5,4433.4,1.4839]
[1755384993576,1.6571942,4433.5,4433.4,1.4839]
[1755384998178,1.65718968,4433.5,4433.4,1.4839]
[1755384999178,1.65718968,4433.5,4433.4,1.227]
[1755384999378,1.65718968,4433.5,4432.8,3.2078]
[1755384999379,0.5981,4432.9,4432.8,3.6323]
[1755384999587,1.66138968,4432.9,4432.8,4.7114]
[1755385000784,0.77468968,4432.9,4432.8,4.7114]
[1755385005382,1.02378968,4432.9,4432.8,4.7114]
[1755385006587,1.39988968,4432.9,4432.8,4.7114]
[1755385007079,1.39997599,4432.9,4432.8,4.7114]
[1755385007282,1.39997562,4432.9,4432.8,4.7114]
[1755385007589,1.3999761,4432.9,4432.8,4.7114]
[1755385007883,0.7747761,4432.9,4432.8,4.7114]
[1755385008788,4.0491,4434.2,4434.1,0.4286]
[1755385008979,4.61042562,4434.2,4434.1,0.2594668]
[1755385009185,4.0491,4434.2,4434.1,0.8633668]
[1755385009386,4.6776,4434.2,4434.1,0.6179668]
[1755385010284,4.6776,4434.2,4434.1,0.8633668]
[1755385011786,4.6776,4434.2,4434.1,0.6179668]
[1755385012589,4.6776,4434.2,4434.1,0.6176]
[1755385013089,1.4698,4434.2,4434.1,0.6176]
[1755385014691,1.4698,4434.2,4433.8,0.8679]
[1755385014885,0.3304,4434.0,4433.9,0.7871]
[1755385015191,0.5827,4434.0,4433.9,0.7871]
[1755385015491,1.4698,4434.0,4433.9,1.0325]
[1755385015690,0.8871,4433.9,4433.4,3.2078]
[1755385015890,1.4698,4433.3,4433.2,1.4727]
[1755385020200,0.5052,4433.8,4433.2,3.8126]
[1755385020395,8.769,4434.9,4433.8,0.3585]
[1755385020396,0.8871,4434.6,4433.8,0.3585]
[1755385020704,0.3819,4434.5,4433.9,0.5094]
[1755385020897,1.66535545,4434.4,4434.3,1.0325]
[1755385021193,1.66535129,4434.4,4434.3,1.0325]
[1755385021495,1.66535129,4434.4,4434.3,0.7871]
[1755385021699,1.66535129,4434.4,4434.0,0.6039]
[1755385021996,1.4698,4434.2,4434.1,0.7871]
[1755385022191,1.66535129,4434.2,4434.1,0.7871]
[1755385022587,1.66535129,4434.2,4433.8,0.264]
[1755385022789,0.5827,4433.9,4433.8,1.1142]
[1755385022990,1.4698,4433.9,4433.8,1.1142]
[1755385023499,1.4698,4433.9,4433.8,1.4727]
[1755385023999,1.66530618,4433.9,4433.8,1.2087]
[1755385024300,1.66530618,4433.9,4433.7,3.2078]
[1755385024498,1.66531811,4433.8,4433.1,0.3585]
[1755385024699,0.5827,4433.2,4433.1,0.9633]
[1755385024902,1.4698,4433.2,4433.1,1.4727]
[1755385026706,1.4698,4433.2,4433.1,1.2087]
[1755385027800,1.4698,4433.2,4432.9,3.2078]
[1755385028103,1.4698,4433.1,4433.0,1.0325]
[1755385028602,1.4698,4433.1,4433.0,1.2087]
[1755385029704,1.4698,4433.1,4433.0,1.4727]
[1755385030599,1.0879,4433.1,4433.0,1.4727]
[1755385030902,0.2586,4433.7,4433.0,1.4727]
[1755385031104,0.2586,4433.7,4432.9,3.2078]
[1755385031105,1.66535946,4433.6,4433.5,0.9633]
[1755385031299,1.66535946,4433.6,4433.5,1.4727]
[1755385033506,1.66535946,4433.6,4433.5,1.2087]
[1755385034995,1.41875946,4433.6,4433.5,1.4727]
[1755385035201,0.19555946,4433.6,4433.5,1.2087]
[1755385035402,0.70075946,4433.6,4433.5,1.4727]
[1755385035602,0.86485946,4433.6,4433.5,1.4727]
[1755385035803,1.66535946,4433.6,4433.5,1.4727]
[1755385036405,1.4698,4433.6,4433.5,1.4727]
[1755385036598,1.66945363,4433.6,4433.5,1.4727]
[1755385037501,1.66945363,4433.6,4433.5,1.2087]
[1755385040307,1.66945363,4433.6,4433.5,1.4613]
[1755385041613,1.66945363,4433.6,4433.5,1.2087]
[1755385042613,1.66945363,4433.6,4433.5,1.4613]
[1755385047911,0.61255363,4433.6,4433.5,1.2087]
[1755385048118,1.04225363,4433.6,4433.5,1.4613]
[1755385048312,1.42255363,4433.6,4433.5,1.4613]
[1755385048513,0.19965363,4433.6,4433.5,1.4613]
[1755385048712,0.70355363,4433.6,4433.5,1.4613]
[1755385049513,1.04225363,4433.6,4433.5,1.4613]
[1755385049819,1.42255363,4433.6,4433.5,1.4613]
[1755385050012,0.19965363,4433.6,4433.5,1.4613]
[1755385051218,0.70366326,4433.6,4433.5,1.4613]
[1755385051621,0.87566326,4433.6,4433.5,1.4613]
[1755385051821,1.42266326,4433.6,4433.5,1.4613]
[1755385052623,1.68086326,4433.6,4433.5,1.4613]
[1755385057423,1.68086326,4433.6,4433.5,1.2087]
[1755385058220,1.68086326,4433.6,4433.4,3.2078]
[1755385058426,1.4811,4433.0,4432.9,3.6136]
[1755385058621,1.4811,4433.0,4432.9,3.9968]
[1755385058924,1.68101306,4433.0,4432.9,3.9968]
[1755385061028,1.4811,4433.0,4432.9,3.9968]
[1755385061924,1.4811,4433.0,4432.9,3.8317]
[1755385062427,1.4811,4433.0,4432.9,3.4485]
[1755385063121,1.4811,4433.0,4432.9,3.8317]
[1755385063316,1.4811,4433.0,4432.9,3.9968]
[1755385063727,1.4811,4433.0,4432.9,4.2474]
[1755385064428,1.4811,4433.0,4432.9,4.415]
[1755385064624,1.4811,4433.0,4432.9,4.6676]
[1755385064829,0.8842,4433.9,4433.0,0.8864]
[1755385065030,0.5969,4433.2,4433.1,1.4598]
[1755385065328,1.68114999,4433.2,4433.1,1.4598]
[1755385065828,1.68114072,4433.2,4433.1,1.4598]
[1755385066025,1.68114072,4433.2,4433.1,1.2072]
[1755385069234,1.68114072,4433.2,4433.1,1.4607]
[1755385075231,0.79694072,4433.2,4432.8,3.581]
[1755385075437,1.4599,4432.9,4432.8,24.3448]
[1755385075827,1.4599,4432.9,4432.8,24.718]
[1755385076034,1.4599,4432.9,4432.8,4.263]
[1755385076229,1.4599,4432.9,4432.8,25.13]
[1755385076435,1.4599,4432.9,4432.8,4.676]
[1755385076635,1.4599,4432.9,4432.8,25.13]
[1755385078145,1.4599,4432.9,4432.8,4.676]
[1755385078640,1.4599,4432.9,4432.8,4.4225]
[1755385078843,1.4599,4432.9,4432.8,24.8765]
[1755385082447,1.4599,4432.9,4432.8,4.4225]
[1755385082647,0.5683,4432.3,4432.2,0.4177]
[1755385082945,1.4599,4432.3,4432.2,21.2439]
[1755385083150,1.4599,4432.3,4432.2,21.5082]
[1755385083344,1.65993353,4432.3,4432.2,21.2439]
[1755385084353,1.65993353,4432.3,4432.2,20.8707]
[1755385085743,1.65993353,4432.3,4432.2,0.4177]
[1755385085948,1.65993353,4432.3,4432.2,20.8707]
[1755385086751,1.65993353,4432.3,4432.0,3.581]
[1755385086752,0.5683,4432.1,4432.0,20.453]
[1755385086949,0.76833353,4432.1,4432.0,20.453]
[1755385087351,1.65993353,4432.1,4432.0,20.453]
[1755385088250,1.65993353,4432.1,4432.0,0.3732]
[1755385088860,1.65993353,4432.1,4431.8,0.2643]
[1755385089157,1.65993353,4432.0,4431.9,20.8262]
[1755385090658,1.4599,4432.0,4431.9,20.8262]
[1755385090859,1.65953975,4432.0,4431.9,20.8262]
[1755385091059,1.4599,4432.0,4431.9,20.8262]
[1755385092158,1.4599,4432.0,4431.9,21.2439]
[1755385093261,1.4599,4432.0,4431.9,21.0845]
[1755385093757,0.4068,4431.4,4431.3,3.9988]
[1755385094058,1.4599,4431.4,4431.3,25.131]
[1755385096256,1.4599,4431.4,4431.3,20.455]
[1755385096555,1.4599,4431.4,4431.3,20.8282]
[1755385096760,1.4599,4431.4,4431.3,21.5102]
[1755385096952,1.4599,4431.4,4431.3,21.6697]
[1755385097154,1.4599,4431.4,4431.3,21.9232]
[1755385101757,1.4699,4431.2,4431.1,0.10155377]
[1755385101964,1.67096594,4431.2,4431.1,0.10155377]
[1755385105359,0.78726594,4431.2,4430.4,20.457]
[1755385105567,1.4699,4430.5,4430.4,20.457]
[1755385105768,1.4699,4430.4,4430.3,0.3606]
[1755385106263,3.2078,4430.8,4429.8,1.4619]
[1755385106264,0.3404,4429.9,4429.8,1.4619]
[1755385106466,0.2532,4429.9,4429.8,21.9189]
[1755385106657,0.2601,4430.1,4429.8,21.9189]
[1755385106862,0.2532,4430.0,4429.9,0.8672]
[1755385107065,0.2532,4430.0,4429.9,21.9189]
[1755385107259,0.5133,4430.0,4429.9,21.9189]
[1755385108665,1.4699,4430.0,4429.9,21.9189]
[1755385109168,1.4699,4430.0,4429.9,1.4619]
[1755385109566,1.4699,4430.0,4429.9,21.9209]
[1755385110267,1.4699,4430.0,4429.9,1.4619]
[1755385110466,1.4699,4430.0,4429.9,21.9209]
[1755385111870,3.2078,4430.8,4429.9,21.9209]
[1755385111871,1.4699,4430.7,4430.6,0.4257]
[1755385112173,1.67086719,4430.7,4430.6,0.7863]
[1755385112372,1.67086719,4430.7,4430.6,0.6253]
[1755385112568,1.67086719,4430.7,4430.6,0.2647]
[1755385113468,0.8837,4430.6,4430.4,0.6244]
[1755385113769,1.67086719,4430.5,4430.4,0.8891]
[1755385113972,1.67086719,4430.5,4430.4,1.0501]
[1755385114667,1.67086719,4430.5,4430.4,0.7863]
[1755385119468,0.1647,4429.8,4429.7,0.5216]
[1755385119675,1.2241,4429.8,4429.7,21.4153]
[1755385120173,0.8537,4429.8,4429.7,21.9219]
[1755385120369,0.678,4429.8,4429.7,21.9219]
[1755385125775,0.5133,4429.8,4429.7,21.9219]
[1755385126878,1.0995,4429.8,4429.7,21.6791]
[1755385127081,1.4699,4429.8,4429.7,21.9219]
[1755385127275,1.4699,4429.8,4429.7,1.4619]
[1755385127474,1.4699,4429.8,4429.7,21.9219]
[1755385128879,1.4699,4429.8,4429.7,21.9212]
[1755385129074,1.67110848,4429.8,4429.7,21.9212]
[1755385129880,1.30070848,4429.8,4429.7,21.9212]
[1755385131076,0.20120848,4429.8,4429.7,21.6747]
[1755385131276,0.44670848,4429.8,4429.7,21.9212]
[1755385131673,1.68310848,4429.8,4429.7,21.9212]
[1755385134884,1.4819,4429.8,4429.7,21.9212]
[1755385135087,1.68343042,4429.8,4429.7,21.9212]
[1755385135680,1.68343042,4429.8,4429.7,21.6747]
[1755385136180,1.68343042,4429.8,4429.7,21.4181]
[1755385136385,1.68343042,4429.8,4429.7,21.6747]
[1755385136775,1.68343042,4429.8,4429.2,35.6998]
[1755385136982,3.2078,4430.3,4429.2,0.9597]
[1755385136983,1.4819,4429.3,4429.2,0.9597]
[1755385137286,1.68343042,4429.3,4429.2,21.6753]
[1755385137483,1.68343042,4429.3,4429.2,21.4187]
[1755385137683,1.68343042,4429.3,4429.2,21.2469]
[1755385138085,1.68343042,4429.3,4429.2,21.9218]
[1755385138487,0.79183042,4429.3,4429.2,21.0787]
[1755385138680,0.79183042,4429.3,4429.2,21.5035]
[1755385138881,0.79183042,4429.3,4429.2,21.6753]
[1755385139081,1.68343042,4429.3,4429.2,21.9218]
[1755385142492,1.68343042,4429.3,4429.2,21.6753]
[1755385142983,1.68343042,4429.3,4428.7,3.2078]
[1755385143184,3.2078,4429.7,4428.7,3.5882]
[1755385143185,1.2313,4428.8,4428.7,3.5882]
[1755385143389,1.4819,4428.8,4428.7,24.4547]
[1755385143980,1.4819,4428.8,4428.7,3.9957]
[1755385144182,1.4819,4428.8,4428.7,24.4557]
[1755385144382,1.4819,4428.8,4428.7,23.6678]
[1755385144981,1.4819,4428.8,4428.7,24.2875]
[1755385145487,1.4819,4428.8,4428.7,24.4557]
[1755385147194,1.4819,4428.8,4428.7,23.9081]
[1755385147494,1.4819,4428.8,4428.7,24.2885]
[1755385147692,1.4819,4428.8,4428.7,24.8851]
[1755385147891,1.4819,4428.8,4428.7,25.1316]
[1755385151192,3.2078,4429.7,4428.7,24.8851]
[1755385151397,1.18704483,4429.6,4429.5,0.5793]
[1755385151698,1.18704483,4429.6,4429.5,1.2163]
[1755385151896,1.18704483,4429.6,4429.5,0.6197]
[1755385152197,1.68314483,4429.6,4429.5,0.6197]
[1755385152698,1.68314483,4429.6,4429.5,0.7879]
[1755385152892,1.68314483,4429.6,4429.5,1.0445]
[1755385153494,1.68314483,4429.6,4429.5,0.3804]
[1755385153794,0.79154483,4429.6,4429.4,20.461]
[1755385153998,1.68314483,4429.5,4429.4,20.8414]
[1755385154298,1.68314483,4429.5,4429.4,21.0807]
[1755385154499,1.68122653,4429.5,4429.4,0.6197]
[1755385155893,1.68122653,4429.5,4428.7,3.2078]
[1755385156096,1.68122653,4429.4,4429.3,1.2163]
[1755385157600,1.68122653,4429.4,4429.3,0.6197]
[1755385158299,0.78962653,4429.4,4429.0,0.2566]
[1755385158497,1.4819,4429.2,4429.1,0.3804]
[1755385158697,1.68122653,4429.2,4429.1,0.3804]
[1755385160098,1.68122653,4429.2,4429.1,0.7873]
[1755385160695,0.3241,4428.4,4428.3,0.5916]
[1755385160898,1.2206,4428.4,4428.3,21.9358]
[1755385161297,1.4665,4428.4,4428.3,21.9358]
[1755385162500,0.2459,4429.0,4428.3,21.9358]
[1755385162702,1.2733051,4428.9,4428.8,1.4758]
[1755385162900,0.1995051,4428.9,4428.8,1.4758]
[1755385163099,0.8536051,4428.9,4428.8,1.4758]
[1755385163295,0.3241,4428.4,4428.3,20.6276]
[1755385163503,0.8141,4428.4,4428.3,21.9358]
[1755385163707,0.57,4428.4,4428.3,21.9358]
[1755385163904,1.2068,4428.4,4428.3,21.9358]
[1755385165410,1.4665,4428.4,4428.3,21.9358]
[1755385166308,1.66616089,4428.4,4428.3,21.9358]
[1755385167406,1.01376089,4428.4,4428.3,21.9358]
[1755385167710,0.44556089,4428.4,4428.3,21.9358]
[1755385168006,0.19966089,4428.4,4428.3,21.9583]
[1755385168204,0.16,4429.4,4429.3,1.4758]
[1755385168405,0.84963966,4429.4,4429.3,1.4758]
[1755385168601,1.01373966,4429.4,4429.3,1.4758]
[1755385168806,1.40643966,4429.4,4429.3,1.4758]
[1755385169714,1.66613966,4429.4,4429.3,1.4758]
[1755385170915,0.19963966,4429.4,4429.3,1.4758]
[1755385171710,0.68963966,4429.4,4429.3,1.4758]
[1755385172517,0.85373966,4429.4,4429.3,1.4758]
[1755385173109,1.40643966,4429.4,4429.3,1.4758]
[1755385173309,1.27343966,4429.4,4429.3,1.4758]
[1755385173610,0.3927,4429.3,4428.7,3.2078]
[1755385173812,0.1641,4428.9,4428.8,21.0506]
[1755385174011,1.2068,4428.9,4428.8,21.9348]
[1755385174206,0.3927,4429.3,4428.8,21.9348]
[1755385174409,0.49,4429.1,4429.0,0.5916]
[1755385174607,0.49,4429.1,4429.0,1.4758]
[1755385175712,0.6541,4429.1,4429.0,1.4758]
[1755385176213,0.2441,4429.1,4429.0,0.5916]
[1755385176514,1.4665,4429.1,4429.0,21.2477]
[1755385176712,1.66598568,4429.1,4429.0,21.2477]
[1755385177011,1.66598568,4429.1,4428.2,3.2078]
[1755385177012,0.78328568,4429.1,4428.5,0.3656]
[1755385177217,0.5838,4428.6,4428.5,0.7897]
[1755385177418,1.66598568,4428.6,4428.5,21.5112]
[1755385177718,1.66598568,4428.6,4428.5,21.2467]
[1755385177918,1.66603644,4428.6,4428.5,21.2467]
[1755385178111,1.66603644,4428.6,4428.5,20.457]
[1755385178310,1.66601982,4428.6,4428.5,20.457]
[1755385178619,1.66601982,4428.6,4428.5,21.0791]
[1755385178817,1.66601982,4428.6,4428.5,21.2467]
[1755385179010,1.66601982,4428.6,4428.2,3.2078]
[1755385179212,1.66601982,4428.5,4428.4,1.4758]
[1755385180517,1.66601982,4428.5,4428.4,0.9572]
[1755385181015,1.66601982,4428.5,4428.4,1.2217]
[1755385181214,1.66601982,4428.5,4428.4,1.4758]
[1755385182716,1.66601982,4428.5,4428.4,1.2217]
[1755385184015,1.66601982,4428.5,4428.4,1.4758]
[1755385186620,1.66870261,4428.5,4428.4,1.4758]
[1755385189418,0.20220261,4428.5,4428.4,1.4761]
[1755385189625,0.5208,4428.8,4428.4,1.4761]
[1755385189927,0.53268526,4428.7,4428.6,0.5719]
[1755385190230,1.67988526,4428.7,4428.6,21.9069]
[1755385200327,1.67988526,4428.7,4428.6,21.6525]
[1755385200625,1.67988526,4428.7,4428.6,21.2365]
[1755385200825,1.67988526,4428.7,4428.6,21.9069]
[1755385201222,3.4704,4429.2,4428.6,21.9069]
[1755385201418,0.46478204,4429.1,4429.0,0.5719]
[1755385201620,0.20218204,4429.1,4429.0,21.9059]
[1755385201816,0.5208,4429.8,4429.0,21.9284]
[1755385202017,0.20215809,4429.7,4429.6,1.4479]
[1755385202230,0.20215809,4429.7,4429.6,21.9059]
[1755385202824,1.67985809,4429.7,4429.6,21.9059]
[1755385203022,0.3305,4429.5,4429.4,20.458]
[1755385203226,1.67985809,4429.5,4429.4,21.2355]
[1755385203728,1.67985809,4429.5,4429.4,21.4909]